Workbook

Sheet 2016
A1: =CELL("dateiname") -> D:\Mutter-Software\Kostenkontrolle Haushaltsbuch\Version 2.03\Originaldatei KKHB 2.03\[Kostenkontrolle-Haushaltsbuch_V2.03.xlsm]2016 | B1: Kostenkontrolle-Haushaltsbuch - Version 2.03 | H1: =TODAY() -> 2016-04-01 | L1: 0 | P1: Lizenz-Nr.: | Q1: =IF(Q2=1,Q3,"Testversion") -> Testversion
Q2: =IF(F1140=TRUE,1,0) -> 0
Q3: =F1139 -> 0
Y4: =F1109 -> N | AA4: Fremdwährung J/N: | AD4: =F1109 -> N | AH4: Einnahmen | AI4: Fixe Ausgaben | AJ4: var. Audgaben | AL4: Saldo
B5: Überblick | D5: =RIGHT(CELL("dateiname",A1),LEN(A1)-FIND("]",A1)) -> 2016 | AA5: Fremdwährungssymbol: | AD5: =F1110 -> 0 | AG5: Januar | AH5: =D8 -> 2480.71 | AI5: =D10 -> 1293.5 | AJ5: =D14 -> 680.39 | AL5: =AH5-AI5-AJ5 -> 506.82
D6: Januar | E6: Februar | F6: März | G6: April | H6: Mai | I6: Juni | J6: Juli | K6: August | L6: September | M6: Oktober | N6: November | O6: Dezember | P6: Summe | AA6: Hauswährung | AD6: =F1108 -> € | AG6: Februar | AH6: =E8 -> 2330.71 | AI6: =E10 -> 993.5 | AJ6: =E14 -> 2302.6 | AL6: =AH6-AI6-AJ6 -> -965.39
AG7: März | AH7: =F8 -> 2330.71 | AI7: =F10 -> 1257.5 | AJ7: =F14 -> 959.39 | AL7: 113.82
B8: 1 Einnahmen | D8: =F99 -> 2480.71 | E8: =G99 -> 2330.71 | F8: =H99 -> 2330.71 | G8: 2480.71 | H8: 2330.71 | I8: 2330.71 | J8: 2480.71 | K8: 2330.71 | L8: 2330.71 | M8: 2480.71 | N8: 2330.71 | O8: 2330.71 | P8: =SUM(D8:O8) -> 28568.52 | Q8: =F1108 -> € | Y8: =IF(F1140=TRUE,1,0) -> 0 | AD8: =IF(F1140=TRUE,1,0) -> 0 | AG8: April | AH8: =G8 -> 2480.71 | AI8: =G10 -> 1088.5 | AJ8: =G14 -> 0 | AL8: 1392.21
AG9: Mai | AH9: =H8 -> 2330.71 | AI9: =H10 -> 988.5 | AJ9: =H14 -> 0 | AL9: 1342.21
B10: 2 Fixe Ausgaben | D10: =SUM(G127:G186) -> 1293.5 | E10: =SUM(H127:H186) -> 993.5 | F10: =SUM(I127:I186) -> 1257.5 | G10: 1088.5 | H10: 988.5 | I10: 1002.5 | J10: 1003.5 | K10: 993.5 | L10: 997.5 | M10: 1008.5 | N10: 1158.5 | O10: 1002.5 | P10: 12788 | Q10: =F1108 -> € | AG10: Juni | AH10: =I8 -> 2330.71 | AI10: =I10 -> 1002.5 | AJ10: =I14 -> 0 | AL10: 1328.21
AG11: Juli | AH11: =J8 -> 2480.71 | AI11: =J10 -> 1003.5 | AJ11: =J14 -> 0 | AL11: 1477.21
B12: 3 Budget | D12: =D8-D10 -> 1187.21 | E12: =E8-E10 -> 1337.21 | F12: 1073.21 | G12: 1392.21 | H12: 1342.21 | I12: 1328.21 | J12: 1477.21 | K12: 1337.21 | L12: 1333.21 | M12: 1472.21 | N12: 1172.21 | O12: 1328.21 | P12: =P8-P10 -> 15780.52 | Q12: =F1108 -> € | AG12: August | AH12: =K8 -> 2330.71 | AI12: =K10 -> 993.5 | AJ12: =K14 -> 0 | AL12: 1337.21
AG13: September | AH13: =L8 -> 2330.71 | AI13: =L10 -> 997.5 | AJ13: =L14 -> 0 | AL13: 1333.21
B14: 4 Var. Ausgaben | D14: =E242 -> 680.39 | E14: =F242 -> 2302.6 | F14: =G242 -> 959.39 | G14: 0 | H14: 0 | I14: 0 | J14: 0 | K14: 0 | L14: 0 | M14: 0 | N14: 0 | O14: 0 | P14: =SUM(D14:O14) -> 3942.38 | Q14: =F1108 -> € | AG14: Oktober | AH14: =M8 -> 2480.71 | AI14: =M10 -> 1008.5 | AJ14: =M14 -> 0 | AL14: 1472.21
AG15: November | AH15: =N8 -> 2330.71 | AI15: =N10 -> 1158.5 | AJ15: =N14 -> 0 | AL15: 1172.21
AG16: Dezember | AH16: =O8 -> 2330.71 | AI16: =O10 -> 1002.5 | AJ16: =O14 -> 0 | AL16: 1328.21
B17: 5 Saldo | D17: =D8-D10-D14 -> 506.82 | E17: =E8-E10-E14 -> -965.39 | F17: 113.82 | G17: 1392.21 | H17: 1342.21 | I17: 1328.21 | J17: 1477.21 | K17: 1337.21 | L17: 1333.21 | M17: 1472.21 | N17: 1172.21 | O17: 1328.21 | P17: 11838.14 | Q17: =F1108 -> € | AH17: Januar | AL17: Februar | AP17: März | AT17: April | AX17: Mai | BB17: Juni | BF17: Juli | BJ17: August | BN17: September | BR17: Oktober | BV17: November | BZ17: Dezember
AH18: Einnahmen | AI18: Ausgaben | AJ18: Saldo | AL18: Einnahmen | AM18: Ausgaben | AN18: Saldo | AP18: Einnahmen | AQ18: Ausgaben | AR18: Saldo | AT18: Einnahmen | AU18: Ausgaben | AV18: Saldo | AX18: Einnahmen | AY18: Ausgaben | AZ18: Saldo | BB18: Einnahmen | BC18: Ausgaben | BD18: Saldo | BF18: Einnahmen | BG18: Ausgaben | BH18: Saldo | BJ18: Einnahmen | BK18: Ausgaben | BL18: Saldo | BN18: Einnahmen | BO18: Ausgaben | BP18: Saldo | BR18: Einnahmen | BS18: Ausgaben | BT18: Saldo | BV18: Einnahmen | BW18: Ausgaben | BX18: Saldo | BZ18: Einnahmen | CA18: Ausgaben | CB18: Saldo
AG19: Einnahmen | AH19: =AH5 -> 2480.71 | AL19: =AH6 -> 2330.71 | AP19: =AH7 -> 2330.71 | AT19: =AH8 -> 2480.71 | AX19: =AH9 -> 2330.71 | BB19: =AH10 -> 2330.71 | BF19: =AH11 -> 2480.71 | BJ19: =AH12 -> 2330.71 | BN19: =AH13 -> 2330.71 | BR19: =AH14 -> 2480.71 | BV19: =AH15 -> 2330.71 | BZ19: =AH16 -> 2330.71
AG20: fixe Ausgaben | AI20: =AI5 -> 1293.5 | AM20: =AI6 -> 993.5 | AQ20: =AI7 -> 1257.5 | AU20: =AI8 -> 1088.5 | AY20: =AI9 -> 988.5 | BC20: =AI10 -> 1002.5 | BG20: =AI11 -> 1003.5 | BK20: =AI12 -> 993.5 | BO20: =AI13 -> 997.5 | BS20: =AI14 -> 1008.5 | BW20: =AI15 -> 1158.5 | CA20: =AI16 -> 1002.5
AG21: var. Ausgaben | AI21: =AJ5 -> 680.39 | AM21: =AJ6 -> 2302.6 | AQ21: =AJ7 -> 959.39 | AU21: =AJ8 -> 0 | AY21: =AJ9 -> 0 | BC21: =AJ10 -> 0 | BG21: =AJ11 -> 0 | BK21: =AJ12 -> 0 | BO21: =AJ13 -> 0 | BS21: =AJ14 -> 0 | BW21: =AJ15 -> 0 | CA21: =AJ16 -> 0
AG22: Saldo + | AJ22: =AL5 -> 506.82 | AN22: =AL6 -> -965.39 | AR22: =AL7 -> 113.82 | AV22: =AL8 -> 1392.21 | AZ22: =AL9 -> 1342.21 | BD22: =AL10 -> 1328.21 | BH22: =AL11 -> 1477.21 | BL22: =AL12 -> 1337.21 | BP22: =AL13 -> 1333.21 | BT22: =AL14 -> 1472.21 | BX22: =AL15 -> 1172.21 | CB22: =AL16 -> 1328.21
Q37: mutter-software.de Seite 1
B41: Bemerkungen:
Q47: www.alle-meine-vorlagen.de Seite 1
B50: Kostenkontrolle-Haushaltsbuch - Version 2.03 | H50: =TODAY() -> 2016-04-01
Q53: =IF(AD8=1,"","Testversion") -> Testversion
B54: 1 | C54: Einnahmen und Ausgaben in Fremdwährung | H54: =AD5 -> 0
C55: Umrechnungskurs Währung monatlich in: | E55: =AD6 -> € | F55: 1.05 | G55: 1.05 | H55: 1.05 | I55: 1.05 | J55: 1.05 | K55: 1.05 | L55: 1.05 | M55: 1.05 | N55: 1.05 | O55: 1.05 | P55: 1.05 | Q55: 1.05
A56: Fremdwährung | B56: Tag | C56: Einnahmen Fremdwährung | E56: =AD5 -> 0 | F56: Januar | G56: Februar | H56: März | I56: April | J56: Mai | K56: Juni | L56: Juli | M56: August | N56: September | O56: Oktober | P56: November | Q56: Dezember | R56: Summe | S56: Bemerkungen
B57: 1 | C57: Gehalt | F57: 2900 | G57: 2900 | H57: 2900 | I57: 2900 | J57: 2900 | K57: 2900 | L57: 2900 | M57: 2900 | N57: 2900 | O57: 2900 | P57: 2900 | Q57: 2900 | R57: =SUM(F57:Q57) -> 34800
R58: =SUM(F58:Q58) -> 0
R59: 0
B60: Summe der Einnahmen | F60: =SUM(F57:F59) -> 2900 | G60: =SUM(G57:G59) -> 2900 | H60: 2900 | I60: 2900 | J60: 2900 | K60: 2900 | L60: 2900 | M60: 2900 | N60: 2900 | O60: 2900 | P60: 2900 | Q60: 2900 | R60: 34800
B62: Tag | C62: Ausgaben in Fremdwährung | E62: =AD5 -> 0 | F62: Januar | G62: Februar | H62: März | I62: April | J62: Mai | K62: Juni | L62: Juli | M62: August | N62: September | O62: Oktober | P62: November | Q62: Dezember | R62: Summe | S62: Bemerkungen
B63: 26 | C63: Krankenversicherung | F63: 100 | G63: 100 | H63: 100 | I63: 100 | J63: 100 | K63: 100 | L63: 100 | M63: 100 | N63: 100 | O63: 100 | P63: 100 | Q63: 100 | R63: =SUM(F63:Q63) -> 1200
C64: Kantine essen | F64: 80 | G64: 80 | H64: 80 | I64: 80 | J64: 80 | K64: 80 | L64: 80 | M64: 80 | N64: 80 | O64: 80 | P64: 80 | Q64: 80 | R64: 960
C65: Kaffee | F65: 25 | G65: 25 | H65: 25 | I65: 25 | J65: 25 | K65: 25 | L65: 25 | M65: 25 | N65: 25 | O65: 25 | P65: 25 | Q65: 25 | R65: 300
R66: 0
R67: 0
B68: Summe der Ausgaben | F68: =SUM(F63:F67) -> 205 | G68: =SUM(G63:G67) -> 205 | H68: 205 | I68: 205 | J68: 205 | K68: 205 | L68: 205 | M68: 205 | N68: 205 | O68: 205 | P68: 205 | Q68: 205 | R68: 2460
B70: Saldo in (Fremdwährung) | E70: =AD5 -> 0 | F70: =F60-F68 -> 2695 | G70: 2695 | H70: 2695 | I70: 2695 | J70: 2695 | K70: 2695 | L70: 2695 | M70: 2695 | N70: 2695 | O70: 2695 | P70: 2695 | Q70: 2695 | R70: 32340
B71: Saldo in (Hauswährung) | E71: =AD6 -> € | F71: =F70/F55 -> 2566.666667 | G71: 2566.666667 | H71: 2566.666667 | I71: 2566.666667 | J71: 2566.666667 | K71: 2566.666667 | L71: 2566.666667 | M71: 2566.666667 | N71: 2566.666667 | O71: 2566.666667 | P71: 2566.666667 | Q71: 2566.666667 | R71: =SUM(F71:Q71) -> 30800
B72: Überweisung an Hausbank in | E72: =AD5 -> 0 | F72: 2400 | G72: 2400 | H72: 2400 | I72: 2400 | J72: 2400 | K72: 2400 | L72: 2400 | M72: 2400 | N72: 2400 | O72: 2400 | P72: 2400 | Q72: 2400 | R72: =SUM(F72:Q72) -> 28800
B73: Überweisung an Hausbank in | E73: =AD6 -> € | F73: =F72/F55 -> 2285.714286 | G73: 2285.714286 | H73: 2285.714286 | I73: 2285.714286 | J73: 2285.714286 | K73: 2285.714286 | L73: 2285.714286 | M73: 2285.714286 | N73: 2285.714286 | O73: 2285.714286 | P73: 2285.714286 | Q73: 2285.714286 | R73: =SUM(F73:Q73) -> 27428.57143 | S73: ! Diesen Betrag in die erste Spalte der Einnahmentabelle übertragen
B74: Saldo (auf Fremdwährungskonto) | E74: =AD5 -> 0 | F74: =F70-F72 -> 295 | G74: =G70-G72 -> 295 | H74: =H70-H72 -> 295 | I74: 295 | J74: 295 | K74: 295 | L74: 295 | M74: 295 | N74: 295 | O74: =O70-O72 -> 295 | P74: 295 | Q74: 295 | R74: =SUM(F74:Q74) -> 3540
B77: 1 | C77: Einnahmen
B78: Tag | C78: Einnahmen | F78: Januar | G78: Februar | H78: März | I78: April | J78: Mai | K78: Juni | L78: Juli | M78: August | N78: September | O78: Oktober | P78: November | Q78: Dezember | R78: Summe | S78: Bemerkungen
B79: 1 | C79: Gehalt | F79: 2285.71 | G79: 2285.71 | H79: 2285.71 | I79: 2285.71 | J79: 2285.71 | K79: 2285.71 | L79: 2285.71 | M79: 2285.71 | N79: 2285.71 | O79: 2285.71 | P79: 2285.71 | Q79: 2285.71 | R79: =SUM(F79:Q79) -> 27428.52
B80: 5 | C80: Vermietung Garage | F80: 45 | G80: 45 | H80: 45 | I80: 45 | J80: 45 | K80: 45 | L80: 45 | M80: 45 | N80: 45 | O80: 45 | P80: 45 | Q80: 45 | R80: =SUM(F80:Q80) -> 540
B81: 10 | C81: Nebenjob | F81: 150 | I81: 150 | L81: 150 | O81: 150 | R81: 600
R82: =SUM(F82:Q82) -> 0
R83: 0
R84: 0
R85: 0
R86: 0
R87: 0
R88: 0
R89: 0
R90: 0
R91: 0
R92: 0
R93: 0
R94: 0
R95: 0
R96: 0
R97: 0
R98: 0
B99: Summe der Einnahmen | F99: =SUM(F79:F98) -> 2480.71 | G99: 2330.71 | H99: 2330.71 | I99: 2480.71 | J99: 2330.71 | K99: 2330.71 | L99: 2480.71 | M99: 2330.71 | N99: 2330.71 | O99: 2480.71 | P99: 2330.71 | Q99: 2330.71 | R99: 28568.52
W100: Seite 2
B121: Kostenkontrolle-Haushaltsbuch - Version 2.03 | H121: =TODAY() -> 2016-04-01
Q124: =IF(AD8=1,"","Testversion") -> Testversion
B125: 2 | C125: Fixe Ausgaben
B126: Tag | C126: Kategorie | D126: Ausgabe für | G126: Januar | H126: Februar | I126: März | J126: April | K126: Mai | L126: Juni | M126: Juli | N126: August | O126: September | P126: Oktober | Q126: November | R126: Dezember | S126: Summe | T126: Bemerkungen
B127: 1 | C127: Haus | D127: Schmutzwasser (Stadtwerke) | I127: 6 | L127: 6 | O127: 6 | R127: 6 | S127: =SUM(G127:R127) -> 24
B128: 1 | C128: Haus | D128: Niederschlagswasser (Stadtwerke) | I128: 3 | L128: 3 | O128: 3 | R128: 3 | S128: =SUM(G128:R128) -> 12
B129: 1 | C129: Haus | D129: Wasser (Stadtwerke) | H129: 5 | J129: 5 | L129: 5 | N129: 5 | P129: 5 | R129: 5 | S129: 30
B130: 1 | C130: Haus | D130: Miete | G130: 800 | H130: 800 | I130: 800 | J130: 800 | K130: 800 | L130: 800 | M130: 800 | N130: 800 | O130: 800 | P130: 800 | Q130: 800 | R130: 800 | S130: =SUM(G130:R130) -> 9600
B131: 2 | C131: Haus | D131: Strom (Energie XY) | G131: 20 | H131: 20 | I131: 20 | J131: 20 | K131: 20 | L131: 20 | M131: 20 | N131: 20 | O131: 20 | P131: 20 | Q131: 20 | R131: 20 | S131: 240
B132: 2 | C132: Haus | D132: Gas (Energie XY) | G132: 18 | H132: 18 | I132: 18 | J132: 18 | K132: 18 | L132: 18 | M132: 18 | N132: 18 | O132: 18 | P132: 18 | Q132: 18 | R132: 18 | S132: 216
B133: 2 | C133: Versicherung | D133: Unfallversicherung | G133: 7.5 | H133: 7.5 | I133: 7.5 | J133: 7.5 | K133: 7.5 | L133: 7.5 | M133: 7.5 | N133: 7.5 | O133: 7.5 | P133: 7.5 | Q133: 7.5 | R133: 7.5 | S133: 90
B134: 2 | C134: Versicherung | D134: Rentenzusatzversicherung | G134: 40 | H134: 40 | I134: 40 | J134: 40 | K134: 40 | L134: 40 | M134: 40 | N134: 40 | O134: 40 | P134: 40 | Q134: 40 | R134: 40 | S134: 480
B135: 2 | C135: Versicherung | D135: Lebensversicherung | Q135: 170 | S135: 170
B136: 5 | C136: Auto | D136: Autoversicherung (XY) | G136: 290 | S136: 290
B137: 5 | C137: Auto | D137: Auto Steuer (Finanzamt) | I137: 260 | S137: 260
B138: 10 | C138: Web/Tel./TV | D138: Handykosten | G138: 10 | H138: 10 | I138: 10 | J138: 10 | K138: 10 | L138: 10 | M138: 10 | N138: 10 | O138: 10 | P138: 10 | Q138: 10 | R138: 10 | S138: 120
B139: 11 | C139: Kinder | D139: Kindergarten | G139: 50 | H139: 50 | I139: 50 | J139: 50 | K139: 50 | L139: 50 | M139: 50 | N139: 50 | O139: 50 | P139: 50 | Q139: 50 | R139: 50 | S139: 600
B140: 13 | C140: Kinder | D140: Turnverein | G140: 14 | H140: 14 | I140: 14 | J140: 14 | K140: 14 | L140: 14 | M140: 14 | N140: 14 | O140: 14 | P140: 14 | Q140: 14 | R140: 14 | S140: 168
B141: 17 | C141: Haus | D141: Müllgebühren | J141: 60 | S141: 60
B142: 20 | C142: Sonstiges | D142: Zeitschriftenabo | G142: 15 | J142: 15 | M142: 15 | P142: 15 | S142: 60
S143: 0
S144: 0
S145: 0
S146: 0
B147: 24 | C147: Verein | D147: Handballverein | J147: 20 | S147: =SUM(G147:R147) -> 20
B148: 25 | C148: Web/Tel./TV | D148: Internet/Kabelfernsehen/Tel | G148: 29 | H148: 29 | I148: 29 | J148: 29 | K148: 29 | L148: 29 | M148: 29 | N148: 29 | O148: 29 | P148: 29 | Q148: 29 | R148: 29 | S148: 348
S149: 0
S150: 0
S151: 0
S152: 0
S153: 0
S154: 0
S155: =SUM(G155:R155) -> 0
S156: 0
S157: 0
S158: 0
S159: 0
S160: 0
S161: 0
S162: 0
S163: 0
S164: 0
S165: 0
S166: 0
S167: 0
S168: 0
S169: 0
S170: 0
S171: 0
S172: 0
S173: 0
S174: 0
S175: 0
S176: 0
S177: 0
S178: 0
S179: 0
S180: 0
S181: 0
S182: 0
S183: 0
S184: 0
S185: 0
S186: 0
G187: =SUM(SUBTOTAL(9,G127:G186)) -> 1293.5 | H187: =SUM(SUBTOTAL(9,H127:H186)) -> 993.5 | I187: =SUM(SUBTOTAL(9,I127:I186)) -> 1257.5 | J187: 1088.5 | K187: 988.5 | L187: 1002.5 | M187: 1003.5 | N187: 993.5 | O187: 997.5 | P187: 1008.5 | Q187: 1158.5 | R187: 1002.5 | S187: 12788
X188: Seite 3
B216: Kostenkontrolle-Haushaltsbuch - Version 2.03 | H216: =TODAY() -> 2016-04-01
Q219: =IF(AD8=1,"","Testversion") -> Testversion
B220: 4 | C220: Variable Ausgaben - Monatsübersicht MÄRZ 2016 | I220: 3
B221: Kostenart | E221: Januar | F221: Februar | G221: März | H221: April | I221: Mai | J221: Juni | K221: Juli | L221: August | M221: September | N221: Oktober | O221: November | P221: Dezember | Q221: Summe | R221: Bemerkung
B222: =F1111 -> Lebensmittel | E222: =C433 -> 174 | F222: =C480 -> 270 | G222: =C527 -> 306.49 | H222: =C574 -> 0 | I222: =C621 -> 0 | J222: =C668 -> 0 | K222: =C715 -> 0 | L222: =C762 -> 0 | M222: =C809 -> 0 | N222: =C856 -> 0 | O222: =C903 -> 0 | P222: =C950 -> 0 | Q222: =SUM(E222:P222) -> 750.49
B223: =F1112 -> Körperpflege | E223: =D433 -> 44.99 | F223: =D480 -> 44.99 | G223: =D527 -> 44.5 | H223: =D574 -> 0 | I223: =D621 -> 0 | J223: =D668 -> 0 | K223: =D715 -> 0 | L223: =D762 -> 0 | M223: =D809 -> 0 | N223: =D856 -> 0 | O223: =D903 -> 0 | P223: =D950 -> 0 | Q223: =SUM(E223:P223) -> 134.48
B224: Kinder | E224: =E433 -> 35 | F224: =E480 -> 46.9 | G224: =E527 -> 56 | H224: =E574 -> 0 | I224: =E621 -> 0 | J224: =E668 -> 0 | K224: =E715 -> 0 | L224: =E762 -> 0 | M224: =E809 -> 0 | N224: =E856 -> 0 | O224: =E903 -> 0 | P224: =E950 -> 0 | Q224: 137.9
B225: Freizeit | E225: =F433 -> 200 | F225: =F480 -> 323.5 | G225: =F527 -> 118.4 | H225: =F574 -> 0 | I225: =F621 -> 0 | J225: =F668 -> 0 | K225: =F715 -> 0 | L225: =F762 -> 0 | M225: =F809 -> 0 | N225: =F856 -> 0 | O225: =F903 -> 0 | P225: =F950 -> 0 | Q225: 641.9
B226: Wohnung | E226: =G433 -> 12 | F226: =G480 -> 1317.89 | G226: =G527 -> 85.3 | H226: =G574 -> 0 | I226: =G621 -> 0 | J226: =G668 -> 0 | K226: =G715 -> 0 | L226: =G762 -> 0 | M226: =G809 -> 0 | N226: =G856 -> 0 | O226: =G903 -> 0 | P226: =G950 -> 0 | Q226: 1415.19
B227: Auto (tanken) | E227: =H433 -> 90 | F227: =H480 -> 215 | G227: =H527 -> 219 | H227: =H574 -> 0 | I227: =H621 -> 0 | J227: =H668 -> 0 | K227: =H715 -> 0 | L227: =H762 -> 0 | M227: =H809 -> 0 | N227: =H856 -> 0 | O227: =H903 -> 0 | P227: =H950 -> 0 | Q227: 524
B228: Hobby | E228: =I433 -> 0 | F228: =I480 -> 49.8 | G228: =I527 -> 42.9 | H228: =I574 -> 0 | I228: =I621 -> 0 | J228: =I668 -> 0 | K228: =I715 -> 0 | L228: =I762 -> 0 | M228: =I809 -> 0 | N228: =I856 -> 0 | O228: =I903 -> 0 | P228: =I950 -> 0 | Q228: 92.7
B229: =F1118 -> Kleidung | E229: =J433 -> 124.4 | F229: =J480 -> 34.52 | G229: =J527 -> 86.8 | H229: =J574 -> 0 | I229: =J621 -> 0 | J229: =J668 -> 0 | K229: =J715 -> 0 | L229: =J762 -> 0 | M229: =J809 -> 0 | N229: =J856 -> 0 | O229: =J903 -> 0 | P229: =J950 -> 0 | Q229: 245.72
B230: 9 | E230: =K433 -> 0 | F230: =K480 -> 0 | G230: =K527 -> 0 | H230: =K574 -> 0 | I230: =K621 -> 0 | J230: =K668 -> 0 | K230: =K715 -> 0 | L230: =K762 -> 0 | M230: =K809 -> 0 | N230: =K856 -> 0 | O230: =K903 -> 0 | P230: =K950 -> 0 | Q230: 0
B231: 10 | E231: =L433 -> 0 | F231: =L480 -> 0 | G231: =L527 -> 0 | H231: =L574 -> 0 | I231: =L621 -> 0 | J231: =L668 -> 0 | K231: =L715 -> 0 | L231: =L762 -> 0 | M231: =L809 -> 0 | N231: =L856 -> 0 | O231: =L903 -> 0 | P231: =L950 -> 0 | Q231: 0
B232: 11 | E232: =M433 -> 0 | F232: =M480 -> 0 | G232: =M527 -> 0 | H232: =M574 -> 0 | I232: =M621 -> 0 | J232: =M668 -> 0 | K232: =M715 -> 0 | L232: =M762 -> 0 | M232: =M809 -> 0 | N232: =M856 -> 0 | O232: =M903 -> 0 | P232: =M950 -> 0 | Q232: 0
B233: 12 | E233: =N433 -> 0 | F233: =N480 -> 0 | G233: =N527 -> 0 | H233: =N574 -> 0 | I233: =N621 -> 0 | J233: =N668 -> 0 | K233: =N715 -> 0 | L233: =N762 -> 0 | M233: =N809 -> 0 | N233: =N856 -> 0 | O233: =N903 -> 0 | P233: =N950 -> 0 | Q233: 0
B234: 13 | E234: =O433 -> 0 | F234: =O480 -> 0 | G234: =O527 -> 0 | H234: =O574 -> 0 | I234: =O621 -> 0 | J234: =O668 -> 0 | K234: =O715 -> 0 | L234: =O762 -> 0 | M234: =O809 -> 0 | N234: =O856 -> 0 | O234: =O903 -> 0 | P234: =O950 -> 0 | Q234: 0
B235: 14 | E235: =P433 -> 0 | F235: =P480 -> 0 | G235: =P527 -> 0 | H235: =P574 -> 0 | I235: =P621 -> 0 | J235: =P668 -> 0 | K235: =P715 -> 0 | L235: =P762 -> 0 | M235: =P809 -> 0 | N235: =P856 -> 0 | O235: =P903 -> 0 | P235: =P950 -> 0 | Q235: 0
B236: 15 | E236: =Q433 -> 0 | F236: =Q480 -> 0 | G236: =Q527 -> 0 | H236: =Q574 -> 0 | I236: =Q621 -> 0 | J236: =Q668 -> 0 | K236: =Q715 -> 0 | L236: =Q762 -> 0 | M236: =Q809 -> 0 | N236: =Q856 -> 0 | O236: =Q903 -> 0 | P236: =Q950 -> 0 | Q236: =SUM(E236:P236) -> 0
B237: 16 | E237: =R433 -> 0 | F237: =R480 -> 0 | G237: =R527 -> 0 | H237: =R574 -> 0 | I237: =R621 -> 0 | J237: =R668 -> 0 | K237: =R715 -> 0 | L237: =R762 -> 0 | M237: =R809 -> 0 | N237: =R856 -> 0 | O237: =R903 -> 0 | P237: =R950 -> 0 | Q237: =SUM(E237:P237) -> 0
B238: 17 | E238: =S433 -> 0 | F238: =S480 -> 0 | G238: =S527 -> 0 | H238: =S574 -> 0 | I238: =S621 -> 0 | J238: =S668 -> 0 | K238: =S715 -> 0 | L238: =S762 -> 0 | M238: =S809 -> 0 | N238: =S856 -> 0 | O238: =S903 -> 0 | P238: =S950 -> 0 | Q238: 0
B239: 18 | E239: =T433 -> 0 | F239: =T480 -> 0 | G239: =T527 -> 0 | H239: =T574 -> 0 | I239: =T621 -> 0 | J239: =T668 -> 0 | K239: =T715 -> 0 | L239: =T762 -> 0 | M239: =T809 -> 0 | N239: =T856 -> 0 | O239: =T903 -> 0 | P239: =T950 -> 0 | Q239: 0
B240: 19 | E240: =U433 -> 0 | F240: =U480 -> 0 | G240: =U527 -> 0 | H240: =U574 -> 0 | I240: =U621 -> 0 | J240: =U668 -> 0 | K240: =U715 -> 0 | L240: =U762 -> 0 | M240: =U809 -> 0 | N240: =U856 -> 0 | O240: =U903 -> 0 | P240: =U950 -> 0 | Q240: 0
B241: 20 | E241: =V433 -> 0 | F241: =V480 -> 0 | G241: =V527 -> 0 | H241: =V574 -> 0 | I241: =V621 -> 0 | J241: =V668 -> 0 | K241: =V715 -> 0 | L241: =V762 -> 0 | M241: =V809 -> 0 | N241: =V856 -> 0 | O241: =V903 -> 0 | P241: =V950 -> 0 | Q241: 0
B242: Summe | E242: =SUM(E222:E241) -> 680.39 | F242: =SUM(F222:F241) -> 2302.6 | G242: 959.39 | H242: 0 | I242: 0 | J242: 0 | K242: 0 | L242: 0 | M242: 0 | N242: 0 | O242: 0 | P242: 0 | Q242: =SUM(E242:P242) -> 3942.38
V243: Seite 4
B401: Tag | C401: =$F$1111 -> Lebensmittel | D401: =$F$1112 -> Körperpflege | E401: =$F$1113 -> Kinder | F401: =$F$1114 -> Freizeit | G401: =$F$1115 -> Wohnung | H401: =$F$1116 -> Auto (tanken) | I401: =$F$1117 -> Hobby | J401: =$F$1118 -> Kleidung | K401: =$F$1119 -> 9 | L401: =$F$1120 -> 10 | M401: =$F$1121 -> 11 | N401: =$F$1122 -> 12 | O401: =$F$1123 -> 13 | P401: =$F$1124 -> 14 | Q401: =$F$1125 -> 15 | R401: =$F$1126 -> 16 | S401: =$F$1127 -> 17 | T401: =$F$1128 -> 18 | U401: =$F$1129 -> 19 | V401: =$F$1130 -> 20 | W401: Summe | X401: Bemerkung
B402: 1 | W402: =SUM(C402:V402) -> 0
B403: 2 | C403: 30 | E403: 20 | W403: =SUM(C403:V403) -> 50
B404: 3 | D404: 10 | F404: 200 | W404: 210
B405: 4 | G405: 12 | W405: 12
B406: 5 | H406: 30 | W406: 30
B407: 6 | W407: 0
B408: 7 | W408: 0
B409: 8 | W409: 0
B410: 9 | J410: 99.9 | W410: 99.9
B411: 10 | W411: 0
B412: 11 | C412: 54 | W412: 54
B413: 12 | D413: 15 | W413: 15
B414: 13 | W414: 0
B415: 14 | W415: 0
B416: 15 | C416: 20 | W416: 20
B417: 16 | W417: 0
B418: 17 | E418: 15 | W418: 15
B419: 18 | H419: 50 | W419: 50
B420: 19 | D420: 19.99 | W420: 19.99
B421: 20 | W421: 0
B422: 21 | W422: 0
B423: 22 | W423: 0
B424: 23 | W424: 0
B425: 24 | C425: 70 | W425: 70
B426: 25 | J426: 24.5 | W426: 24.5
B427: 26 | W427: =SUM(C427:V427) -> 0
B428: 27 | H428: 10 | W428: 10
B429: 28 | W429: 0
B430: 29 | W430: 0
B431: 30 | W431: 0
B432: 31 | W432: 0
B433: Sum. | C433: =SUM(C402:C432) -> 174 | D433: =SUM(D402:D432) -> 44.99 | E433: 35 | F433: 200 | G433: 12 | H433: 90 | I433: 0 | J433: 124.4 | K433: 0 | L433: 0 | M433: 0 | N433: 0 | O433: 0 | P433: 0 | Q433: 0 | R433: 0 | S433: 0 | T433: 0 | U433: 0 | V433: 0 | W433: =SUM(C433:V433) -> 680.39
AB434: Januar
B448: Tag | C448: =$F$1111 -> Lebensmittel | D448: =$F$1112 -> Körperpflege | E448: =$F$1113 -> Kinder | F448: =$F$1114 -> Freizeit | G448: =$F$1115 -> Wohnung | H448: =$F$1116 -> Auto (tanken) | I448: =$F$1117 -> Hobby | J448: =$F$1118 -> Kleidung | K448: =$F$1119 -> 9 | L448: =$F$1120 -> 10 | M448: =$F$1121 -> 11 | N448: =$F$1122 -> 12 | O448: =$F$1123 -> 13 | P448: =$F$1124 -> 14 | Q448: =$F$1125 -> 15 | R448: =$F$1126 -> 16 | S448: =$F$1127 -> 17 | T448: =$F$1128 -> 18 | U448: =$F$1129 -> 19 | V448: =$F$1130 -> 20 | W448: Summe | X448: Bemerkung
B449: 1 | W449: =SUM(C449:V449) -> 0
B450: 2 | G450: 19.99 | W450: =SUM(C450:V450) -> 19.99
B451: 3 | C451: 40 | H451: 55 | W451: 95
... 409 more rows
